fUST/lending_fUST_20250213
["ID","MTS","AMOUNT","RATE_DAILY","PERIOD"]
[352875214,1739383837364,-500.0,0.00012313,2]
[352875215,1739383837373,-500.0,0.00012315,2]
[352875216,1739383837383,-500.0,0.00012315,2]
[352875217,1739383837392,-6571.62,0.00012315,2]
[352875219,1739383837402,-500.0,0.00012315,2]
[352875221,1739383837411,-500.0,0.00012315,2]
[352875224,1739383837421,-500.0,0.00012315,2]
[352875226,1739383837430,-500.0,0.00012315,2]
[352875228,1739383837440,-500.0,0.00012322,2]
[352875229,1739383837449,-500.0,0.00012322,2]
[352875230,1739383837459,-500.0,0.00012322,2]
[352875231,1739383837468,-500.0,0.00012322,2]
[352875232,1739383837477,-500.0,0.00012322,2]
[352875233,1739383837486,-500.0,0.00012322,2]
[352875234,1739383837496,-500.0,0.00012322,2]
[352875235,1739383837505,-500.0,0.00012322,2]
[352875236,1739383837515,-500.0,0.00012322,2]
[352875237,1739383837525,-528.78595647,0.00012322,2]
[352875238,1739383837534,-500.0,0.00012322,2]
[352875239,1739383837543,-500.0,0.00012322,2]
[352875240,1739383837552,-500.0,0.00012322,2]
[352875241,1739383837562,-500.0,0.00012322,2]
[352875242,1739383837571,-561.36332075,0.00012322,2]
[352875243,1739383837581,-500.0,0.00012322,2]
[352875244,1739383837590,-500.0,0.00012322,2]
[352875245,1739383837599,-500.0,0.00012322,2]
[352875246,1739383837609,-500.0,0.00012322,2]
[352875247,1739383837619,-500.0,0.00012322,2]
[352875248,1739383837630,-3303.14,0.00012322,2]
[352875249,1739383837640,-500.0,0.00012322,2]
[352875250,1739383837649,-500.0,0.00012322,2]
[352875251,1739383837658,-500.0,0.00012322,2]
[352875252,1739383837669,-500.0,0.00012322,2]
[352875253,1739383837679,-3904.12,0.00012322,2]
[352875254,1739383837688,-500.0,0.00012322,2]
[352875255,1739383837698,-500.0,0.00012322,2]
[352875256,1739383837707,-500.0,0.00012324,2]
[352875257,1739383837717,-500.0,0.00012324,2]
[352875258,1739383837726,-500.0,0.00012324,2]
[352875259,1739383837736,-511.13,0.00012324,2]
[352875260,1739383837746,-352.12296156,0.00012324,2]
[352875261,1739383837755,-500.0,0.00012324,2]
[352875262,1739383837765,-500.0,0.00012324,2]
[352875263,1739383837774,-298.74117131,0.00012324,2]
[352875264,1739383837784,-500.0,0.00012328,2]
[352875265,1739383837793,-500.0,0.00012328,2]
[352875266,1739383837880,-890.21,0.00012328,2]
[352875267,1739383837898,-500.0,0.0001245,2]
[352875268,1739383837908,-2158.07,0.0001245,2]
[352875269,1739383837918,-500.0,0.0001245,2]
[352875270,1739383837927,-500.0,0.0001245,2]
[352875271,1739383837937,-500.0,0.0001245,2]
[352875272,1739383837946,-709.72,0.0001245,2]
[352875273,1739383837955,-500.0,0.0001245,2]
[352875274,1739383837966,-500.0,0.0001245,2]
[352875275,1739383837975,-500.0,0.0001245,2]
[352875276,1739383837985,-619.52,0.0001245,2]
[352875277,1739383837995,-739.14,0.0001245,2]
[352875278,1739383838003,-500.0,0.0001245,2]
[352875279,1739383838013,-609.29,0.0001245,2]
[352875280,1739383838023,-500.0,0.0001245,2]
[352875281,1739383838032,-500.0,0.0001245,2]
[352875282,1739383838041,-500.0,0.0001245,2]
[352875283,1739383838051,-500.0,0.0001245,2]
[352875284,1739383838060,-210.67165032,0.0001245,2]
[352875285,1739383838070,-500.0,0.0001245,2]
[352875286,1739383838079,-500.0,0.0001245,2]
[352875287,1739383838090,-500.0,0.0001245,2]
[352875288,1739383838099,-636.41,0.0001245,2]
[352875289,1739383838108,-500.0,0.00012452,2]
[352875290,1739383838117,-605.45,0.00012452,2]
[352875292,1739383838126,-6571.62,0.00012452,2]
[352875294,1739383838136,-500.0,0.00012452,2]
[352875296,1739383838146,-500.0,0.00012452,2]
[352875298,1739383838156,-468.2,0.00012452,2]
[352875300,1739383838166,-500.0,0.00012452,2]
[352875302,1739383838176,-250.21448444,0.00012452,2]
[352875304,1739383838186,-500.0,0.00012459,2]
[352875306,1739383838195,-500.0,0.00012459,2]
[352875308,1739383838205,-500.0,0.00012459,2]
[352875310,1739383838214,-500.0,0.00012459,2]
[352875312,1739383838223,-500.0,0.00012459,2]
[352875314,1739383838233,-500.0,0.00012459,2]
[352875316,1739383838242,-531.32,0.00012459,2]
[352875318,1739383838251,-500.0,0.00012459,2]
[352875320,1739383838261,-500.0,0.00012459,2]
[352875322,1739383838271,-500.0,0.00012459,2]
[352875324,1739383838284,-500.0,0.00012459,2]
[352875326,1739383838294,-500.0,0.00012459,2]
[352875328,1739383838303,-500.0,0.00012459,2]
[352875330,1739383838313,-500.0,0.00012459,2]
[352875332,1739383838323,-3303.14,0.00012459,2]
[352875334,1739383838332,-500.0,0.00012459,2]
[352875336,1739383838341,-500.0,0.00012459,2]
[352875338,1739383838351,-500.0,0.00012459,2]
[352875340,1739383838361,-3904.12,0.00012459,2]
[352875342,1739383838370,-500.0,0.00012459,2]
[352875344,1739383838379,-500.0,0.00012459,2]
[352875346,1739383838389,-500.0,0.00012461,2]
[352875348,1739383838398,-511.13,0.00012461,2]
[352875349,1739383838407,-500.0,0.00012461,2]
[352875351,1739383838416,-500.0,0.00012465,2]
[352875353,1739383838426,-271.89821772,0.00012465,2]
[352875355,1739383838436,-890.21,0.00012465,2]
[352875357,1739383838445,-670.97309956,0.00012561,2]
[352875359,1739383838455,-500.0,0.00012587,2]
[352875361,1739383838464,-2158.07,0.00012587,2]
[352875363,1739383838474,-500.0,0.00012587,2]
[352875365,1739383838483,-500.0,0.00012587,2]
[352875366,1739383838493,-709.72,0.00012587,2]
[352875367,1739383838502,-500.0,0.00012587,2]
[352875368,1739383838512,-500.0,0.00012587,2]
[352875369,1739383838522,-500.0,0.00012587,2]
[352875370,1739383838531,-619.52,0.00012587,2]
[352875371,1739383838540,-739.14,0.00012587,2]
[352875372,1739383838549,-500.0,0.00012587,2]
[352875373,1739383838560,-609.29,0.00012587,2]
[352875374,1739383838570,-500.0,0.00012587,2]
[352875375,1739383838579,-500.0,0.00012587,2]
[352875376,1739383838589,-500.0,0.00012587,2]
[352875377,1739383838598,-500.0,0.00012587,2]
[352875378,1739383838607,-500.0,0.00012587,2]
[352875379,1739383838622,-500.0,0.00012587,2]
[352875380,1739383838632,-500.0,0.00012587,2]
[352875381,1739383838643,-500.0,0.00012589,2]
[352875382,1739383838653,-6571.62,0.00012589,2]
[352875383,1739383838662,-500.0,0.00012589,2]
[352875384,1739383838672,-500.0,0.00012589,2]
[352875385,1739383838682,-500.0,0.00012589,2]
[352875386,1739383838693,-500.0,0.0001259,2]
[352875387,1739383838703,-500.0,0.0001259,2]
[352875388,1739383838713,-500.0,0.00012595,2]
[352875389,1739383838723,-186.75691635,0.00012595,2]
[352875390,1739383838732,-500.0,0.00012595,2]
[352875391,1739383838741,-500.0,0.00012595,2]
[352875392,1739383838751,-195.88,0.00012596,2]
[352875393,1739383838760,-500.0,0.00012596,2]
[352875394,1739383838769,-598.59278937,0.00012596,2]
[352875395,1739383838782,-500.0,0.00012596,2]
[352875396,1739383838791,-500.0,0.00012596,2]
[352875397,1739383838800,-500.0,0.00012596,2]
[352875398,1739383838809,-500.0,0.00012596,2]
[352875399,1739383838819,-500.0,0.00012596,2]
[352875400,1739383838828,-500.0,0.00012596,2]
[352875401,1739383838838,-500.0,0.00012596,2]
[352875402,1739383838847,-500.0,0.00012596,2]
[352875403,1739383838856,-500.0,0.00012596,2]
[352875404,1739383838865,-3303.14,0.00012596,2]
[352875405,1739383838874,-500.0,0.00012596,2]
[352875406,1739383838884,-500.0,0.00012596,2]
[352875407,1739383838894,-500.0,0.00012596,2]
[352875408,1739383838903,-3904.12,0.00012596,2]
[352875409,1739383838912,-500.0,0.00012596,2]
[352875410,1739383838922,-500.0,0.00012596,2]
[352875411,1739383838931,-500.0,0.00012598,2]
[352875412,1739383838940,-511.13,0.00012598,2]
[352875413,1739383838950,-500.0,0.00012598,2]
[352875414,1739383838959,-500.0,0.00012602,2]
[352875415,1739383838970,-890.21,0.00012602,2]
[352875416,1739383838979,-500.0,0.00012688,2]
[352875417,1739383838988,-632.4489348,0.00012688,2]
[352875418,1739383838998,-500.0,0.00012688,2]
[352875419,1739383839007,-500.0,0.00012724,2]
[352875420,1739383839016,-2158.07,0.00012724,2]
[352875421,1739383839026,-500.0,0.00012724,2]
[352875422,1739383839036,-709.72,0.00012724,2]
[352875423,1739383839046,-500.0,0.00012724,2]
[352875424,1739383839055,-619.52,0.00012724,2]
[352875425,1739383839064,-739.14,0.00012724,2]
[352875426,1739383839074,-500.0,0.00012724,2]
[352875427,1739383839083,-609.29,0.00012724,2]
[352875428,1739383839093,-500.0,0.00012724,2]
[352875429,1739383839102,-500.0,0.00012724,2]
[352875430,1739383839111,-500.0,0.00012724,2]
[352875431,1739383839121,-500.0,0.00012724,2]
[352875432,1739383839130,-500.0,0.00012724,2]
[352875433,1739383839139,-500.0,0.00012724,2]
[352875434,1739383839149,-517.4,0.00012724,2]
[352875435,1739383839159,-500.0,0.00012726,2]
[352875436,1739383839168,-6571.62,0.00012726,2]
[352875437,1739383839178,-500.0,0.00012726,2]
[352875438,1739383839188,-500.0,0.00012726,2]
[352875439,1739383839198,-500.0,0.00012726,2]
[352875440,1739383839207,-500.0,0.00012733,2]
[352875441,1739383839216,-500.0,0.00012733,2]
[352875442,1739383839225,-500.0,0.00012733,2]
[352875443,1739383839234,-500.0,0.00012733,2]
[352875444,1739383839244,-500.0,0.00012733,2]
[352875445,1739383839254,-500.0,0.00012733,2]
[352875446,1739383839263,-371.45,0.00012733,2]
[352875447,1739383839273,-500.0,0.00012733,2]
[352875448,1739383839282,-500.0,0.00012733,2]
[352875449,1739383839292,-500.0,0.00012733,2]
[352875450,1739383839302,-3303.14,0.00012733,2]
[352875451,1739383839311,-500.0,0.00012733,2]
[352875452,1739383839321,-500.0,0.00012733,2]
[352875453,1739383839331,-500.0,0.00012733,2]
[352875454,1739383839340,-3904.12,0.00012733,2]
[352875455,1739383839350,-500.0,0.00012733,2]
[352875456,1739383839359,-500.0,0.00012733,2]
[352875457,1739383839369,-412.12997673,0.00012735,2]
[352875458,1739383839378,-511.13,0.00012735,2]
[352875459,1739383839387,-500.0,0.00012735,2]
[352875460,1739383839397,-500.0,0.00012739,2]
[352875461,1739383839407,-890.21,0.00012739,2]
[352875462,1739383839417,-500.0,0.00012861,2]
[352875464,1739383839426,-2158.07,0.00012861,2]
[352875465,1739383839435,-500.0,0.00012861,2]
[352875466,1739383839446,-709.72,0.00012861,2]
[352875467,1739383839456,-457.2,0.00012861,2]
[352875468,1739383839466,-619.52,0.00012861,2]
[352875469,1739383839475,-739.14,0.00012861,2]
[352875470,1739383839485,-500.0,0.00012861,2]
[352875471,1739383839495,-609.29,0.00012861,2]
[352875472,1739383839505,-500.0,0.00012861,2]
[352875473,1739383839515,-500.0,0.00012861,2]
[352875474,1739383839525,-500.0,0.00012861,2]
[352875475,1739383839535,-500.0,0.00012861,2]
[352875476,1739383839546,-500.0,0.00012861,2]
[352875477,1739383839556,-500.0,0.00012863,2]
[352875478,1739383839565,-6571.62,0.00012863,2]
[352875479,1739383839575,-500.0,0.00012863,2]
[352875480,1739383839584,-500.0,0.0001287,2]
[352875481,1739383839594,-500.0,0.0001287,2]
[352875482,1739383839604,-500.0,0.0001287,2]
[352875483,1739383839614,-357.36,0.0001287,2]
[352875484,1739383839627,-500.0,0.0001287,2]
[352875485,1739383839637,-500.0,0.0001287,2]
[352875486,1739383839646,-500.0,0.0001287,2]
[352875487,1739383839655,-500.0,0.0001287,2]
[352875488,1739383839666,-3303.14,0.0001287,2]
[352875489,1739383839676,-500.0,0.0001287,2]
[352875490,1739383839686,-500.0,0.0001287,2]
[352875491,1739383839697,-500.0,0.0001287,2]
[352875492,1739383839706,-3904.12,0.0001287,2]
[352875493,1739383839716,-500.0,0.0001287,2]
[352875494,1739383839726,-500.0,0.0001287,2]
[352875495,1739383839735,-511.13,0.00012872,2]
[352875496,1739383839745,-500.0,0.00012872,2]
[352875506,1739383839840,-500.0,0.00012876,2]
[352875508,1739383839851,-890.21,0.00012876,2]
[352875510,1739383839862,-442.42310928,0.000129,2]
[352875512,1739383839872,-442.42310921,0.000129,2]
[352875514,1739383839882,-500.0,0.00012998,2]
[352875516,1739383839891,-2158.07,0.00012998,2]
[352875518,1739383839901,-500.0,0.00012998,2]
[352875520,1739383839911,-709.72,0.00012998,2]
[352875522,1739383839920,-619.52,0.00012998,2]
[352875524,1739383839930,-739.14,0.00012998,2]
[352875526,1739383839939,-609.29,0.00012998,2]
[352875527,1739383839948,-500.0,0.00012998,2]
[352875529,1739383839958,-212.88,0.00012998,2]
[352875531,1739383839967,-481.27,0.00012998,2]
[352875533,1739383839977,-500.0,0.00013,2]
[352875535,1739383839986,-6571.62,0.00013,2]
[352875537,1739383839997,-500.0,0.00013007,2]
[352875539,1739383840008,-500.0,0.00013007,2]
[352875541,1739383840018,-500.0,0.00013007,2]
[352875543,1739383840027,-500.0,0.00013007,2]
[352875545,1739383840036,-500.0,0.00013007,2]
[352875547,1739383840045,-500.0,0.00013007,2]
[352875549,1739383840068,-3303.14,0.00013007,2]
[352875551,1739383840078,-500.0,0.00013007,2]
[352875553,1739383840087,-500.0,0.00013007,2]
[352875555,1739383840096,-500.0,0.00013007,2]
[352875557,1739383840107,-3904.12,0.00013007,2]
[352875559,1739383840116,-500.0,0.00013007,2]
[352875560,1739383840126,-500.0,0.00013007,2]
[352875562,1739383840135,-511.13,0.00013009,2]
[352875564,1739383840145,-500.0,0.00013009,2]
[352875566,1739383840155,-500.0,0.00013013,2]
[352875568,1739383840165,-890.21,0.00013013,2]
[352875570,1739383840175,-500.0,0.00013135,2]
[352875572,1739383840185,-2158.07,0.00013135,2]
[352875574,1739383840194,-500.0,0.00013135,2]
[352875576,1739383840203,-709.72,0.00013135,2]
[352875578,1739383840213,-619.52,0.00013135,2]
[352875580,1739383840223,-739.14,0.00013135,2]
[352875582,1739383840232,-609.29,0.00013135,2]
[352875584,1739383840242,-500.0,0.00013135,2]
[352875586,1739383840251,-500.0,0.00013137,2]
[352875588,1739383840260,-6235.87597603,0.00013137,2]
[352875618,1739383840562,-339.91960988,0.00011765,2]
[352875620,1739383840572,-500.0,0.00011774,2]
[352875623,1739383840583,-500.0,0.00011774,2]
[352875624,1739383840592,-435.01320463,0.0001191,2]
[352875626,1739383840602,-500.0,0.00011911,2]
[352875628,1739383840612,-500.0,0.00011911,2]
[352875630,1739383840625,-500.0,0.00012048,2]
[352875632,1739383840634,-500.0,0.00012048,2]
[352875634,1739383840644,-500.0,0.00012185,2]
[352875636,1739383840653,-500.0,0.00012185,2]
[352875638,1739383840663,-70.06718549,0.00012322,2]
[352875640,1739383840674,-301.79,0.00012322,2]
[352875642,1739383840685,-128.14281451,0.00012322,2]
[352875644,1739383840696,-500.0,0.00012322,2]
[352875646,1739383840705,-500.0,0.00012459,2]
[352875648,1739383840714,-506.68178704,0.00012595,2]
[352875650,1739383840724,-335.74402397,0.00013137,2]
[352875652,1739383840734,-311.23574677,0.00013138,2]
[352875654,1739383840743,-500.0,0.00013144,2]
[352875656,1739383840753,-500.0,0.00013144,2]
[352875658,1739383840762,-500.0,0.00013144,2]
[352875660,1739383840771,-184.1,0.00013144,2]
[352875662,1739383840781,-521.06,0.00013144,2]
[352875664,1739383840791,-3303.14,0.00013144,2]
[352875666,1739383840801,-500.0,0.00013144,2]
[352875668,1739383840810,-500.0,0.00013144,2]
[352875670,1739383840820,-500.0,0.00013144,2]
[352875672,1739383840830,-3904.12,0.00013144,2]
[352875674,1739383840839,-500.0,0.00013144,2]
[352875676,1739383840848,-500.0,0.00013144,2]
[352875678,1739383840858,-511.13,0.00013146,2]
[352875680,1739383840867,-500.0,0.00013146,2]
[352875682,1739383840876,-500.0,0.0001315,2]
[352875684,1739383840885,-890.21,0.0001315,2]
[352875686,1739383840894,-442.42310921,0.00013208,2]
[352875688,1739383840903,-500.0,0.00013249,2]
[352875690,1739383840912,-500.0,0.00013272,2]
[352875692,1739383840922,-2158.07,0.00013272,2]
[352875694,1739383840931,-500.0,0.00013272,2]
[352875695,1739383840941,-709.72,0.00013272,2]
[352875697,1739383840951,-619.52,0.00013272,2]
[352875699,1739383840960,-739.14,0.00013272,2]
[352875701,1739383840971,-609.29,0.00013272,2]
[352875704,1739383840981,-500.0,0.00013272,2]
[352875705,1739383840990,-500.0,0.00013274,2]
[352875707,1739383841000,-6571.62,0.00013274,2]
[352875709,1739383841009,-500.0,0.00013281,2]
[352875711,1739383841019,-500.0,0.00013281,2]
[352875713,1739383841028,-284.50082553,0.00013281,2]
[352875715,1739383841037,-3303.14,0.00013281,2]
[352875717,1739383841046,-500.0,0.00013281,2]
[352875719,1739383841055,-500.0,0.00013281,2]
[352875721,1739383841065,-500.0,0.00013281,2]
[352875723,1739383841074,-3904.12,0.00013281,2]
[352875724,1739383841084,-500.0,0.00013281,2]
[352875726,1739383841096,-500.0,0.00013281,2]
[352875728,1739383841106,-511.13,0.00013283,2]
[352875730,1739383841116,-500.0,0.00013283,2]
[352875732,1739383841127,-500.0,0.00013287,2]
[352875734,1739383841137,-890.21,0.00013287,2]
[352875736,1739383841146,-500.0,0.00013409,2]
[352875738,1739383841155,-2158.07,0.00013409,2]
[352875740,1739383841165,-500.0,0.00013409,2]
[352875742,1739383841174,-709.72,0.00013409,2]
[352875744,1739383841184,-619.52,0.00013409,2]
[352875746,1739383841194,-739.14,0.00013409,2]
[352875748,1739383841203,-609.29,0.00013409,2]
[352875750,1739383841212,-406.2,0.00013409,2]
[352875752,1739383841221,-500.0,0.00013411,2]
[352875754,1739383841231,-6571.62,0.00013411,2]
[352875756,1739383841240,-607.49282566,0.00013418,2]
[352875758,1739383841250,-500.0,0.00013418,2]
[352875760,1739383841260,-3303.14,0.00013418,2]
[352875762,1739383841271,-546.95,0.00013418,2]
[352875764,1739383841281,-500.0,0.00013418,2]
[352875766,1739383841291,-500.0,0.00013418,2]
[352875768,1739383841300,-3904.12,0.00013418,2]
[352875770,1739383841310,-500.0,0.00013418,2]
[352875772,1739383841319,-500.0,0.00013418,2]
[352875774,1739383841329,-511.13,0.0001342,2]
[352875776,1739383841337,-500.0,0.0001342,2]
[352875778,1739383841346,-500.0,0.00013424,2]
[352875780,1739383841356,-890.21,0.00013424,2]
[352875782,1739383841365,-500.0,0.00013546,2]
[352875784,1739383841375,-2158.07,0.00013546,2]
[352875786,1739383841384,-500.0,0.00013546,2]
[352875788,1739383841394,-709.72,0.00013546,2]
[352875790,1739383841403,-619.52,0.00013546,2]
[352875792,1739383841412,-739.14,0.00013546,2]
[352875794,1739383841421,-609.29,0.00013546,2]
[352875796,1739383841430,-500.0,0.00013548,2]
[352875798,1739383841439,-6571.62,0.00013548,2]
[352875800,1739383841448,-500.0,0.00013555,2]
[352875802,1739383841457,-3303.14,0.00013555,2]
[352875804,1739383841467,-500.0,0.00013555,2]
[352875806,1739383841476,-500.0,0.00013555,2]
[352875808,1739383841485,-3904.12,0.00013555,2]
[352875810,1739383841494,-500.0,0.00013555,2]
[352875811,1739383841503,-500.0,0.00013555,2]
[352875813,1739383841513,-511.13,0.00013557,2]
[352875815,1739383841523,-500.0,0.00013557,2]
[352875823,1739383841617,-500.0,0.00013561,2]
[352875825,1739383841630,-890.21,0.00013561,2]
[352875827,1739383841641,-500.0,0.00013683,2]
[352875829,1739383841651,-2158.07,0.00013683,2]
[352875830,1739383841661,-500.0,0.00013683,2]
[352875832,1739383841670,-709.72,0.00013683,2]
[352875834,1739383841679,-619.52,0.00013683,2]
[352875836,1739383841689,-739.14,0.00013683,2]
[352875838,1739383841701,-609.29,0.00013683,2]
[352875840,1739383841711,-500.0,0.00013685,2]
[352875842,1739383841720,-6571.62,0.00013685,2]
[352875843,1739383841731,-500.0,0.00013692,2]
[352875845,1739383841741,-3303.14,0.00013692,2]
[352875847,1739383841751,-500.0,0.00013692,2]
[352875849,1739383841760,-500.0,0.00013692,2]
[352875850,1739383841769,-3904.12,0.00013692,2]
[352875852,1739383841779,-500.0,0.00013692,2]
[352875854,1739383841788,-500.0,0.00013692,2]
[352875856,1739383841797,-511.13,0.00013694,2]
[352875858,1739383841807,-500.0,0.00013694,2]
[352875860,1739383841816,-161.36,0.00013698,2]
[352875861,1739383841826,-890.21,0.00013698,2]
[352875863,1739383841835,-208.531997,0.00013699,2]
[352875865,1739383841845,-500.0,0.00013699,2]
[352875867,1739383841854,-157.65798741,0.00013699,2]
[352875868,1739383841864,-183.65111481,0.0001373,2]
[352875870,1739383841873,-500.0,0.0001382,2]
[352875872,1739383841883,-2158.07,0.0001382,2]
[352875874,1739383841892,-504.66,0.0001382,2]
[352875876,1739383841902,-709.72,0.0001382,2]
[352875878,1739383841911,-619.52,0.0001382,2]
[352875879,1739383841920,-739.14,0.0001382,2]
[352875881,1739383841930,-609.29,0.0001382,2]
[352875883,1739383841938,-500.0,0.00013822,2]
[352875885,1739383841948,-6571.62,0.00013822,2]
[352875886,1739383841957,-366.4827086,0.00013829,2]
[352875888,1739383841966,-3303.14,0.00013829,2]
[352875890,1739383841975,-500.0,0.00013829,2]
[352875892,1739383841984,-500.0,0.00013829,2]
[352875894,1739383841993,-3904.12,0.00013829,2]
[352875895,1739383842003,-500.0,0.00013829,2]
[352875897,1739383842012,-500.0,0.00013829,2]
[352875899,1739383842023,-511.13,0.00013831,2]
[352875901,1739383842032,-500.0,0.00013831,2]
[352875903,1739383842041,-890.21,0.00013835,2]
[352875904,1739383842050,-500.0,0.00013957,2]
[352875906,1739383842060,-2158.07,0.00013957,2]
[352875908,1739383842069,-709.72,0.00013957,2]
[352875910,1739383842078,-619.52,0.00013957,2]
[352875912,1739383842088,-739.14,0.00013957,2]
[352875913,1739383842097,-609.29,0.00013957,2]
[352875915,1739383842106,-500.0,0.00013959,2]
[352875917,1739383842116,-6571.62,0.00013959,2]
[352875919,1739383842125,-3303.14,0.00013966,2]
[352875921,1739383842135,-500.0,0.00013966,2]
[352875922,1739383842144,-500.0,0.00013966,2]
[352875924,1739383842153,-3904.12,0.00013966,2]
[352875926,1739383842162,-500.0,0.00013966,2]
[352875928,1739383842171,-500.0,0.00013966,2]
[352875930,1739383842180,-511.13,0.00013968,2]
[352875931,1739383842189,-500.0,0.00013968,2]
[352875933,1739383842199,-890.21,0.00013972,2]
[352875935,1739383842207,-442.42310921,0.0001398,2]
[352875937,1739383842217,-177.917,0.00014066,2]
[352875938,1739383842226,-500.0,0.00014094,2]
[352875940,1739383842236,-2158.07,0.00014094,2]
[352875942,1739383842245,-709.72,0.00014094,2]
[352875944,1739383842254,-619.52,0.00014094,2]
[352875946,1739383842263,-739.14,0.00014094,2]
[352875948,1739383842273,-609.29,0.00014094,2]
[352875949,1739383842283,-500.0,0.00014096,2]
[352875951,1739383842292,-6571.62,0.00014096,2]
[352875953,1739383842301,-3303.14,0.00014103,2]
[352875954,1739383842311,-500.0,0.00014103,2]
[352875956,1739383842319,-500.0,0.00014103,2]
[352875958,1739383842329,-3904.12,0.00014103,2]
[352875960,1739383842339,-500.0,0.00014103,2]
[352875961,1739383842348,-500.0,0.00014103,2]
[352875963,1739383842357,-511.13,0.00014105,2]
[352875964,1739383842367,-310.6,0.00014105,2]
[352875966,1739383842377,-890.27,0.00014109,2]
[352875968,1739383842386,-449.99,0.00014231,2]
[352875970,1739383842396,-2158.07,0.00014231,2]
[352875972,1739383842406,-709.72,0.00014231,2]
[352875974,1739383842416,-619.52,0.00014231,2]
[352875976,1739383842425,-739.14,0.00014231,2]
[352875977,1739383842435,-609.29,0.00014231,2]
[352875979,1739383842445,-500.0,0.00014233,2]
[352875981,1739383842455,-6571.62,0.00014233,2]
[352875983,1739383842464,-3303.14,0.0001424,2]
[352875985,1739383842474,-150.9,0.0001424,2]
[352875987,1739383842483,-500.0,0.0001424,2]
[352875989,1739383842492,-3904.12,0.0001424,2]
[352875991,1739383842502,-500.0,0.0001424,2]
[352875993,1739383842511,-511.13,0.00014242,2]
[352875994,1739383842521,-2158.07,0.00014368,2]
[352875996,1739383842531,-709.72,0.00014368,2]
[352875998,1739383842539,-619.52,0.00014368,2]
[352876000,1739383842549,-739.14,0.00014368,2]
[352876003,1739383842559,-609.29,0.00014368,2]
[352876005,1739383842569,-500.0,0.0001437,2]
[352876006,1739383842579,-6571.62,0.0001437,2]
[352876008,1739383842589,-3303.14,0.00014377,2]
[352876010,1739383842599,-400.8,0.00014377,2]
[352876012,1739383842609,-3904.12,0.00014377,2]
[352876014,1739383842621,-500.0,0.00014377,2]
[352876016,1739383842632,-511.13,0.00014379,2]
[352876018,1739383842642,-2158.07,0.00014505,2]
[352876020,1739383842652,-709.72,0.00014505,2]
[352876021,1739383842662,-619.52,0.00014505,2]
[352876023,1739383842672,-739.14,0.00014505,2]
[352876025,1739383842682,-609.29,0.00014505,2]
[352876027,1739383842691,-216.56,0.00014507,2]
[352876029,1739383842702,-6571.62,0.00014507,2]
[352876030,1739383842712,-3303.14,0.00014514,2]
[352876032,1739383842721,-3904.12,0.00014514,2]
[352876034,1739383842731,-500.0,0.00014514,2]